fUSD/lending_fUSD_20250206
["ID","MTS","AMOUNT","RATE_DAILY","PERIOD"]
[351828842,1738804259355,-1312.88,0.00022739,120]
[351828843,1738804259365,-1312.88,0.00022739,120]
[351828844,1738804259375,-1312.88,0.00022739,120]
[351828845,1738804259385,-1312.88,0.00022739,120]
[351828846,1738804259395,-1312.88,0.00022739,120]
[351828847,1738804259405,-1312.95089654,0.00022739,120]
[351828848,1738804259416,-7283.42189771,0.00022927,2]
[351828849,1738804259426,-300.0,0.0002295,3]
[351828850,1738804259435,-38008.44735187,0.00023,2]
[351828851,1738804259445,-29445.85941049,0.00023,20]
[351828852,1738804259455,-5822.8083941,0.00023,9]
[351828853,1738804259463,-320.0,0.00023,10]
[351828854,1738804259473,-929.0,0.00023,15]
[351828855,1738804259482,-10000.0,0.00023,12]
[351828856,1738804259491,-1000.0,0.00023,14]
[351828857,1738804259501,-77168.02323893,0.00023,2]
[351828858,1738804259511,-155.0,0.00023,5]
[351828859,1738804259520,-254.0,0.00023,3]
[351828860,1738804259529,-852.67333053,0.00023,2]
[351828861,1738804259538,-739.80991236,0.00023,5]
[351828862,1738804259548,-900.0,0.00023,24]
[351828863,1738804259558,-229.04767299,0.00023,30]
[351828864,1738804259568,-3000.0,0.00023,31]
[351828865,1738804259577,-535.46344558,0.00023,30]
[351828866,1738804259588,-500.0,0.00023,30]
[351828867,1738804259597,-500.0,0.00023,30]
[351828868,1738804259606,-500.0,0.00023,30]
[351828869,1738804259616,-500.0,0.00023,30]
[351828870,1738804259625,-500.0,0.00023,30]
[351828871,1738804259634,-556.91558817,0.00023,30]
[351828872,1738804259644,-500.0,0.00023,30]
[351828873,1738804259654,-500.0,0.00023,30]
[351828874,1738804259663,-596.98073514,0.00023,30]
[351828875,1738804259673,-500.0,0.00023,30]
[351828876,1738804259682,-500.0,0.00023,30]
[351828877,1738804259690,-500.0,0.00023,30]
[351828878,1738804259774,-500.0,0.00023,30]
[351828879,1738804259783,-500.0,0.00023,30]
[351828880,1738804259792,-500.0,0.00023,30]
[351828881,1738804259801,-500.0,0.00023,30]
[351828882,1738804259810,-500.0,0.00023,30]
[351828883,1738804259819,-500.0,0.00023,30]
[351828884,1738804259830,-500.0,0.00023,30]
[351828885,1738804259839,-500.0,0.00023,30]
[351828886,1738804259849,-500.0,0.00023,30]
[351828887,1738804259858,-500.0,0.00023,30]
[351828888,1738804259867,-500.0,0.00023,30]
[351828889,1738804259877,-500.0,0.00023,30]
[351828890,1738804259886,-500.0,0.00023,30]
[351828891,1738804259896,-500.0,0.00023,30]
[351828892,1738804259905,-500.0,0.00023,30]
[351828893,1738804259916,-500.0,0.00023,30]
[351828894,1738804259926,-500.0,0.00023,30]
[351828895,1738804259936,-500.0,0.00023,30]
[351828896,1738804259945,-500.0,0.00023,30]
[351828897,1738804259955,-500.0,0.00023,30]
[351828898,1738804259965,-500.0,0.00023,30]
[351828899,1738804259980,-500.0,0.00023,30]
[351828900,1738804259991,-500.0,0.00023,30]
[351828901,1738804260001,-500.0,0.00023,30]
[351828902,1738804260011,-1100.0,0.00023,30]
[351828903,1738804260020,-1100.0,0.00023,30]
[351828904,1738804260030,-1100.0,0.00023,30]
[351828905,1738804260041,-500.0,0.00023,30]
[351828906,1738804260051,-540.41820534,0.00023,30]
[351828907,1738804260064,-1100.0,0.00023,30]
[351828908,1738804260073,-500.0,0.00023,30]
[351828909,1738804260083,-1100.0,0.00023,30]
[351828910,1738804260094,-500.0,0.00023,30]
[351828911,1738804260104,-500.0,0.00023,30]
[351828912,1738804260114,-1100.0,0.00023,30]
[351828913,1738804260125,-700.0,0.00023,30]
[351828914,1738804260135,-500.0,0.00023,30]
[351828915,1738804260145,-1100.0,0.00023,30]
[351828916,1738804260156,-700.0,0.00023,30]
[351828917,1738804260167,-500.0,0.00023,30]
[351828918,1738804260176,-500.0,0.00023,30]
[351828919,1738804260186,-1100.0,0.00023,30]
[351828920,1738804260196,-500.0,0.00023,30]
[351828921,1738804260206,-700.0,0.00023,30]
[351828922,1738804260215,-500.0,0.00023,30]
[351828923,1738804260225,-500.0,0.00023,30]
[351828924,1738804260235,-1100.0,0.00023,30]
[351828925,1738804260244,-700.0,0.00023,30]
[351828926,1738804260253,-500.0,0.00023,30]
[351828927,1738804260263,-1100.0,0.00023,30]
[351828928,1738804260272,-354.35333336,0.00023,30]
[351828929,1738804260282,-700.0,0.00023,30]
[351828930,1738804260291,-500.0,0.00023,30]
[351828931,1738804260300,-1100.0,0.00023,30]
[351828932,1738804260309,-700.0,0.00023,30]
[351828933,1738804260318,-500.0,0.00023,30]
[351828934,1738804260328,-1100.0,0.00023,30]
[351828935,1738804260337,-700.0,0.00023,30]
[351828936,1738804260346,-500.0,0.00023,30]
[351828937,1738804260355,-700.0,0.00023,30]
[351828938,1738804260365,-1100.0,0.00023,30]
[351828939,1738804260374,-700.0,0.00023,30]
[351828940,1738804260383,-1100.0,0.00023,30]
[351828941,1738804260392,-700.0,0.00023,30]
[351828942,1738804260402,-700.0,0.00023,30]
[351828943,1738804260411,-700.0,0.00023,30]
[351828944,1738804260428,-700.0,0.00023,30]
[351828945,1738804260437,-700.0,0.00023,30]
[351828946,1738804260446,-700.0,0.00023,30]
[351828947,1738804260456,-500.0,0.00023,30]
[351828948,1738804260465,-500.0,0.00023,30]
[351828949,1738804260475,-172.92,0.00023,120]
[351828950,1738804260484,-1000.0,0.00023,120]
[351828951,1738804260493,-169910.95616396,0.00023,120]
[351828952,1738804260502,-202.54198459,0.00023,120]
[351828953,1738804260511,-500.0,0.00023,30]
[351828954,1738804260521,-500.0,0.00023,30]
[351828955,1738804260530,-585.97722909,0.00023,30]
[351828956,1738804260539,-500.0,0.00023,30]
[351828957,1738804260548,-500.0,0.00023,30]
[351828958,1738804260557,-500.0,0.00023,30]
[351828959,1738804260566,-500.0,0.00023,30]
[351828960,1738804260574,-500.0,0.00023,30]
[351828961,1738804260583,-500.0,0.00023,30]
[351828962,1738804260593,-500.0,0.00023,30]
[351828963,1738804260602,-500.0,0.00023,30]
[351828964,1738804260611,-500.0,0.00023,30]
[351828965,1738804260620,-500.0,0.00023,30]
[351828966,1738804260629,-500.0,0.00023,30]
[351828967,1738804260639,-500.0,0.00023,30]
[351828968,1738804260648,-500.0,0.00023,30]
[351828969,1738804260658,-500.0,0.00023,30]
[351828970,1738804260671,-500.0,0.00023,30]
[351828971,1738804260681,-500.0,0.00023,30]
[351828972,1738804260690,-500.0,0.00023,30]
[351828973,1738804260699,-500.0,0.00023,30]
[351828974,1738804260708,-500.0,0.00023,30]
[351828975,1738804260719,-500.0,0.00023,30]
[351828976,1738804260728,-500.0,0.00023,30]
[351828977,1738804260737,-500.0,0.00023,30]
[351828978,1738804260747,-500.0,0.00023,30]
[351828979,1738804260757,-500.0,0.00023,30]
[351828980,1738804260767,-500.0,0.00023,30]
[351828981,1738804260776,-500.0,0.00023,30]
[351828982,1738804260786,-761.25156146,0.00023,30]
[351828983,1738804260795,-543.39919937,0.00023,30]
[351828984,1738804260804,-500.0,0.00023,30]
[351828985,1738804260814,-500.0,0.00023,30]
[351828986,1738804260824,-500.0,0.00023,30]
[351828987,1738804260833,-500.0,0.00023,30]
[351828988,1738804260843,-500.0,0.00023,30]
[351828989,1738804260852,-500.0,0.00023,30]
[351828990,1738804260862,-500.0,0.00023,30]
[351828991,1738804260871,-500.0,0.00023,30]
[351828992,1738804260880,-500.0,0.00023,30]
[351828993,1738804260889,-500.0,0.00023,30]
[351828994,1738804260898,-500.0,0.00023,30]
[351828995,1738804260907,-500.0,0.00023,30]
[351828996,1738804260920,-500.0,0.00023,30]
[351828997,1738804260929,-500.0,0.00023,30]
[351828998,1738804260939,-500.0,0.00023,30]
[351828999,1738804260947,-500.0,0.00023,30]
[351829000,1738804260957,-500.0,0.00023,30]
[351829001,1738804260969,-500.0,0.00023,30]
[351829002,1738804260981,-500.0,0.00023,30]
[351829003,1738804260990,-2600.0,0.00023,30]
[351829004,1738804260999,-500.0,0.00023,30]
[351829005,1738804261008,-2600.0,0.00023,30]
[351829006,1738804261019,-2600.0,0.00023,30]
[351829007,1738804261028,-500.0,0.00023,30]
[351829008,1738804261037,-500.0,0.00023,30]
[351829009,1738804261047,-2600.0,0.00023,30]
[351829010,1738804261058,-649.44758527,0.00023,2]
[351829011,1738804261068,-2600.0,0.00023,30]
[351829012,1738804261078,-2600.0,0.00023,30]
[351829013,1738804261087,-2600.0,0.00023,30]
[351829014,1738804261096,-2600.0,0.00023,30]
[351829015,1738804261106,-2600.0,0.00023,30]
[351829016,1738804261115,-2600.0,0.00023,30]
[351829017,1738804261126,-2600.0,0.00023,30]
[351829018,1738804261135,-2600.0,0.00023,30]
[351829019,1738804261145,-2600.0,0.00023,30]
[351829020,1738804261156,-1400.0,0.00023,30]
[351829021,1738804261239,-2600.0,0.00023,30]
[351829022,1738804261250,-1400.0,0.00023,30]
[351829023,1738804261261,-500.0,0.00023,30]
[351829024,1738804261271,-2600.0,0.00023,30]
[351829025,1738804261281,-1400.0,0.00023,30]
[351829026,1738804261291,-500.0,0.00023,30]
[351829027,1738804261301,-2600.0,0.00023,2]
[351829028,1738804261311,-1400.0,0.00023,30]
[351829029,1738804261321,-500.0,0.00023,30]
[351829030,1738804261331,-2600.0,0.00023,2]
[351829031,1738804261340,-1400.0,0.00023,30]
[351829032,1738804261350,-500.0,0.00023,30]
[351829033,1738804261359,-2600.0,0.00023,2]
[351829034,1738804261370,-1400.0,0.00023,30]
[351829035,1738804261379,-500.0,0.00023,2]
[351829036,1738804261389,-2600.0,0.00023,2]
[351829037,1738804261399,-1400.0,0.00023,30]
[351829038,1738804261409,-500.0,0.00023,2]
[351829039,1738804261420,-2600.0,0.00023,2]
[351829040,1738804261429,-1400.0,0.00023,30]
[351829041,1738804261439,-1400.0,0.00023,30]
[351829042,1738804261449,-2600.0,0.00023,2]
[351829043,1738804261459,-500.0,0.00023,2]
[351829044,1738804261469,-1400.0,0.00023,30]
[351829045,1738804261479,-2600.0,0.00023,2]
[351829046,1738804261489,-1400.0,0.00023,30]
[351829047,1738804261498,-2600.0,0.00023,2]
[351829048,1738804261508,-1400.0,0.00023,30]
[351829049,1738804261517,-2600.0,0.00023,2]
[351829050,1738804261527,-1400.0,0.00023,30]
[351829051,1738804261536,-2600.0,0.00023,2]
[351829052,1738804261546,-1400.0,0.00023,30]
[351829053,1738804261557,-1400.0,0.00023,2]
[351829054,1738804261567,-2600.0,0.00023,2]
[351829055,1738804261577,-1400.0,0.00023,2]
[351829056,1738804261586,-2600.0,0.00023,2]
[351829057,1738804261595,-1400.0,0.00023,2]
[351829058,1738804261605,-2600.0,0.00023,2]
[351829059,1738804261614,-1400.0,0.00023,2]
[351829060,1738804261624,-4352.60849997,0.00023,2]
[351829061,1738804261633,-1400.0,0.00023,2]
[351829062,1738804261642,-1400.0,0.00023,2]
[351829063,1738804261653,-1400.0,0.00023,2]
[351829064,1738804261663,-1400.0,0.00023,2]
[351829065,1738804261673,-1400.0,0.00023,2]
[351829066,1738804261683,-1400.0,0.00023,2]
[351829067,1738804261693,-1400.0,0.00023,2]
[351829068,1738804261703,-1400.0,0.00023,2]
[351829069,1738804261713,-1400.0,0.00023,2]
[351829070,1738804261722,-1541.84222577,0.00023,2]
[351829071,1738804261732,-800.0,0.00023,2]
[351829072,1738804261742,-2110.0,0.00023,2]
[351829073,1738804261752,-200.0,0.00023,2]
[351829074,1738804261761,-152.0,0.00023,2]
[351829075,1738804261770,-367.80217144,0.0002301,2]
[351829076,1738804261780,-49914.35043017,0.000232,2]
[351829077,1738804261790,-150.0,0.00023216,2]
[351829078,1738804261799,-568.30833675,0.0002322,2]
[351829079,1738804261809,-1333.0,0.00023233,120]
[351829080,1738804261818,-300.0,0.000233,2]
[351829081,1738804261827,-302.03,0.00023309,2]
[351829082,1738804261837,-150.0,0.00023309,2]
[351829083,1738804261847,-150.0,0.00023309,2]
[351829084,1738804261856,-150.0,0.00023309,2]
[351829085,1738804261867,-155.26,0.000234,31]
[351829086,1738804261878,-155.26,0.000234,31]
[351829087,1738804261888,-155.26,0.000234,31]
[351829088,1738804261897,-155.26,0.000234,31]
[351829089,1738804261906,-155.26,0.000234,31]
[351829090,1738804261919,-155.26,0.000234,31]
[351829091,1738804261929,-155.26,0.000234,31]
[351829092,1738804261939,-155.26,0.000234,31]
[351829093,1738804261948,-155.26,0.000234,31]
[351829094,1738804261958,-155.26,0.000234,31]
[351829095,1738804261970,-155.26,0.000234,31]
[351829096,1738804261980,-155.26,0.000234,31]
[351829097,1738804261989,-155.26,0.000234,31]
[351829098,1738804261999,-155.26,0.000234,31]
[351829099,1738804262009,-155.26,0.000234,31]
[351829100,1738804262018,-155.26,0.000234,31]
[351829101,1738804262027,-155.26,0.000234,31]
[351829102,1738804262038,-155.26,0.000234,31]
[351829103,1738804262049,-155.26,0.000234,31]
[351829104,1738804262058,-155.26,0.000234,31]
[351829105,1738804262069,-155.26,0.000234,31]
[351829106,1738804262079,-155.26,0.000234,31]
[351829107,1738804262089,-155.26,0.000234,31]
[351829108,1738804262100,-155.26,0.000234,31]
[351829109,1738804262109,-79007.44872929,0.0002341,2]
[351829110,1738804262119,-2000.0,0.0002345,120]
[351829111,1738804262129,-538.62,0.0002349,2]
[351829112,1738804262139,-200.0,0.000235,2]
[351829113,1738804262148,-20000.0,0.000235,15]
[351829114,1738804262158,-10210.40541327,0.000235,30]
[351829115,1738804262168,-2110.0,0.000235,2]
[351829116,1738804262177,-166.42,0.00023595,2]
[351829117,1738804262187,-720246.4235741,0.0002361,7]
[351829118,1738804262196,-151.0,0.0002361,7]
[351829119,1738804262206,-294.314404,0.0002361,7]
[351829120,1738804262216,-7500.0,0.0002361,7]
[351829121,1738804262225,-7500.0,0.0002361,7]
[351829122,1738804262235,-600.465488,0.0002361,7]
[351829123,1738804262245,-600.465488,0.0002361,7]
[351829124,1738804262255,-4023.0,0.00023668,2]
[351829125,1738804262265,-1000.0,0.00023702,2]
[351829126,1738804262275,-547.57,0.00023705,2]
[351829127,1738804262286,-150.0,0.0002372,2]
[351829128,1738804262295,-13535.67202465,0.00023784,2]
[351829129,1738804262305,-803.23,0.00023836,2]
[351829130,1738804262315,-976.21602358,0.00024,2]
[351829131,1738804262325,-76222.5721735,0.00024,2]
[351829132,1738804262335,-80518.82385318,0.00024,2]
[351829133,1738804262344,-200.0,0.00024,10]
[351829134,1738804262354,-381.33991739,0.00024,6]
[351829135,1738804262364,-5000.0,0.00024,7]
[351829136,1738804262374,-252.16042477,0.00024,2]
[351829137,1738804262384,-9733.6411233,0.00024,14]
[351829138,1738804262393,-6453.78,0.00024,30]
[351829139,1738804262403,-900.0,0.00024,25]
[351829140,1738804262412,-59085.68032483,0.00024,2]
[351829141,1738804262423,-172.9705625,0.00024,120]
[351829142,1738804262433,-1000.0,0.00024,120]
[351829143,1738804262444,-4084.31,0.00024,7]
[351829144,1738804262453,-2110.0,0.00024,2]
[351829145,1738804262463,-779.15870018,0.0002402,2]
[351829146,1738804262473,-152.0,0.00024164,2]
[351829147,1738804262482,-1281.44,0.00024194,30]
[351829148,1738804262491,-403.34577024,0.0002421,2]
[351829149,1738804262501,-3534.28315214,0.0002421,2]
[351829150,1738804262511,-150.0,0.00024225,2]
[351829151,1738804262521,-55426.95320078,0.000245,2]
[351829152,1738804262597,-900.0,0.000245,10]
[351829153,1738804262609,-269999.999999,0.000245,7]
[351829154,1738804262619,-2110.0,0.000245,2]
[351829155,1738804262630,-1511.91,0.00024539,6]
[351829156,1738804262640,-156.1395433,0.00024548,2]
[351829157,1738804262657,-1000.0,0.00024657,4]
[351829158,1738804262666,-468.10564234,0.00024657,4]
[351829159,1738804262676,-1000.0,0.00024658,2]
[351829160,1738804262686,-210.38,0.0002466,120]
[351829161,1738804262696,-392.0,0.0002467,30]
[351829162,1738804262705,-150.5,0.0002467,120]
[351829163,1738804262715,-150.5,0.0002467,120]
[351829164,1738804262725,-156.72,0.0002467,120]
[351829165,1738804262736,-285.36,0.0002468,120]
[351829166,1738804262746,-392.0,0.0002468,30]
[351829167,1738804262757,-150.5,0.0002468,120]
[351829168,1738804262766,-150.5,0.0002468,120]
[351829169,1738804262776,-150.5,0.0002469,120]
[351829170,1738804262785,-392.0,0.0002469,30]
[351829171,1738804262795,-150.5,0.0002469,120]
[351829172,1738804262805,-150.5,0.0002469,120]
[351829173,1738804262814,-400.0,0.000247,2]
[351829174,1738804262824,-230132.51620899,0.000247,30]
[351829175,1738804262834,-500.0,0.000247,2]
[351829176,1738804262844,-650.0,0.000247,2]
[351829177,1738804262854,-1200.0,0.000247,2]
[351829178,1738804262863,-150.0,0.0002473,2]
[351829179,1738804262874,-2000.0,0.00024748,31]
[351829180,1738804262883,-160.3,0.0002479,120]
[351829181,1738804262893,-189.56615269,0.00024899,120]
[351829182,1738804262903,-8426.3989233,0.000249,30]
[351829183,1738804262914,-34662.0,0.000249,60]
[351829184,1738804262926,-999.58148431,0.000249,30]
[351829185,1738804262936,-300.0,0.000249,9]
[351829186,1738804262947,-916.627876,0.0002495,120]
[351829187,1738804262957,-2967.94570134,0.0002496,14]
[351829188,1738804262967,-10765.97324996,0.0002496,14]
[351829189,1738804262982,-150.5,0.0002497,120]
[351829190,1738804262993,-540.0,0.0002497,120]
[351829191,1738804263004,-150.5,0.0002498,120]
[351829192,1738804263014,-540.0,0.0002498,120]
[351829193,1738804263025,-150.5,0.0002499,120]
[351829194,1738804263035,-540.0,0.0002499,120]
[351829195,1738804263047,-1591.53583376,0.00025,2]
[351829196,1738804263059,-254.4405107,0.00025,2]
[351829197,1738804263069,-2909.36562871,0.00025,2]
[351829198,1738804263080,-1017.97265022,0.00025,2]
[351829199,1738804263089,-170.88,0.00025,10]
[351829200,1738804263100,-200.0,0.00025,2]
[351829201,1738804263110,-200.0,0.00025,20]
[351829202,1738804263121,-6000.00703894,0.00025,2]
[351829203,1738804263131,-4209.89915594,0.00025,6]
[351829204,1738804263141,-1000.0,0.00025,10]
[351829205,1738804263152,-1000.0,0.00025,10]
[351829206,1738804263162,-1000.0,0.00025,10]
[351829207,1738804263176,-1000.0,0.00025,10]
[351829208,1738804263187,-1000.0,0.00025,10]
[351829209,1738804263197,-1000.0,0.00025,10]
[351829210,1738804263207,-1000.0,0.00025,10]
[351829211,1738804263216,-1000.0,0.00025,10]
[351829212,1738804263226,-1000.0,0.00025,10]
[351829213,1738804263243,-1000.0,0.00025,10]
[351829214,1738804263259,-1000.0,0.00025,10]
[351829215,1738804263276,-1000.0,0.00025,10]
[351829216,1738804263294,-1000.0,0.00025,10]
[351829217,1738804263311,-1000.0,0.00025,10]
[351829218,1738804263326,-1000.0,0.00025,10]
[351829219,1738804263343,-1000.0,0.00025,10]
[351829220,1738804263361,-1000.0,0.00025,10]
[351829221,1738804263379,-1000.0,0.00025,10]
[351829222,1738804263397,-1000.0,0.00025,10]
[351829223,1738804263414,-1000.0,0.00025,10]
[351829224,1738804263431,-1000.0,0.00025,10]
[351829225,1738804263449,-1000.0,0.00025,10]
[351829226,1738804263465,-1000.0,0.00025,10]
[351829227,1738804263478,-1000.0,0.00025,10]
[351829228,1738804263497,-1000.0,0.00025,10]
[351829229,1738804263510,-1000.0,0.00025,10]
[351829230,1738804263526,-1000.0,0.00025,10]
[351829231,1738804263542,-1000.0,0.00025,10]
[351829232,1738804263555,-1000.0,0.00025,10]
[351829233,1738804263570,-1000.0,0.00025,10]
[351829234,1738804263589,-1000.0,0.00025,10]
[351829235,1738804263604,-304.27677381,0.00025,10]
[351829236,1738804263619,-16167.52795955,0.00025,25]
[351829237,1738804263633,-330.93033685,0.00025,10]
[351829238,1738804263649,-500.0,0.00025,10]
[351829239,1738804263664,-584.02166394,0.00025,2]
[351829240,1738804263680,-2388.94573521,0.00025,30]
[351829241,1738804263695,-4956.48040554,0.00025,30]
[351829242,1738804263710,-3202.90306296,0.00025,60]
[351829243,1738804263725,-8305.17034807,0.00025,30]
[351829244,1738804263739,-3090.0,0.00025,30]
[351829245,1738804263752,-900.0,0.00025,26]
[351829246,1738804263768,-10003.0,0.00025,30]
[351829247,1738804263782,-248264.2174172,0.00025,60]
[351829248,1738804263796,-14456.89286328,0.00025,30]
[351829249,1738804263812,-200.0,0.00025,120]
[351829250,1738804263828,-150.0,0.00025,2]
[351829251,1738804263843,-1944.56467163,0.00025,120]
[351829252,1738804263855,-1520.0,0.00025,120]
[351829253,1738804263866,-1000.0,0.00025,120]
[351829254,1738804263877,-850.0,0.00025,2]
[351829255,1738804263888,-2110.0,0.00025,2]
[351829256,1738804263897,-3230.82144096,0.000251,2]
[351829257,1738804263908,-4000.0,0.00025109,2]
[351829258,1738804263919,-157.49,0.0002513,120]
[351829259,1738804263929,-4084.31,0.000252,7]
[351829260,1738804263939,-150.0,0.00025234,2]
[351829261,1738804263950,-280.0,0.000253,10]
[351829262,1738804263961,-152.0,0.00025373,2]
[351829263,1738804263972,-20799.37252198,0.0002541,30]
[351829264,1738804263985,-234.840055,0.0002541,7]
[351829265,1738804263995,-7500.0,0.0002541,7]
[351829266,1738804264005,-7500.0,0.0002541,7]
[351829267,1738804264017,-600.465488,0.0002541,7]
[351829268,1738804264028,-600.465488,0.0002541,7]
[351829269,1738804264038,-2110.0,0.000255,2]
[351829270,1738804264049,-3000.0,0.000255,2]
[351829271,1738804264063,-500.0,0.00025602,120]
[351829272,1738804264073,-2642.90317447,0.00025706,2]
[351829273,1738804264276,-150.0,0.00025739,2]
[351829274,1738804264297,-3500.0,0.0002575,7]
[351829275,1738804264311,-1059.0,0.00025807,2]
[351829276,1738804264321,-187.36249788,0.00025863,7]
[351829277,1738804264331,-14998.0228383,0.000259,7]
[351829278,1738804264341,-547.57,0.00025969,2]
[351829279,1738804264351,-573.09780613,0.0002599,2]
[351829280,1738804264360,-4318.09338912,0.00026,2]
[351829281,1738804264370,-300.0,0.00026,2]
[351829282,1738804264380,-800.0,0.00026,60]
[351829283,1738804264390,-900.0,0.00026,27]
[351829284,1738804264399,-40000.36561223,0.00026,30]
[351829285,1738804264409,-1000.0,0.00026,120]
[351829286,1738804264421,-2162.92,0.00026,2]
[351829287,1738804264431,-1000.0,0.00026072,2]
[351829288,1738804264441,-5815.02104777,0.00026099,2]
[351829289,1738804264450,-150.0,0.00026244,2]
[351829290,1738804264460,-666.75789217,0.00026325,90]
[351829291,1738804264471,-500.0,0.00026332,120]
[351829292,1738804264481,-26218.77316744,0.000264,2]
[351829293,1738804264491,-2371.7264935,0.00026482,2]
[351829294,1738804264501,-50000.0,0.000265,120]
[351829295,1738804264510,-4084.31,0.000265,7]
[351829296,1738804264520,-265.65,0.00026527,2]
[351829297,1738804264529,-4023.0,0.00026668,2]
[351829298,1738804264539,-155.26,0.000267,31]
[351829299,1738804264549,-155.26,0.000267,31]
[351829300,1738804264559,-155.26,0.000267,31]
[351829301,1738804264570,-155.26,0.000267,31]
[351829302,1738804264580,-155.26,0.000267,31]
[351829303,1738804264589,-155.26,0.000267,31]
[351829304,1738804264599,-155.26,0.000267,31]
[351829305,1738804264609,-155.26,0.000267,31]
[351829306,1738804264618,-155.26,0.000267,31]
[351829307,1738804264628,-155.26,0.000267,31]
[351829308,1738804264638,-155.26,0.000267,31]
[351829309,1738804264648,-155.26,0.000267,31]
[351829310,1738804264658,-155.26,0.000267,31]
[351829311,1738804264668,-155.26,0.000267,31]
[351829312,1738804264682,-155.26,0.000267,31]
[351829313,1738804264692,-155.26,0.000267,31]
[351829314,1738804264702,-155.26,0.000267,31]
[351829315,1738804264711,-155.26,0.000267,31]
[351829316,1738804264722,-155.26,0.000267,31]
[351829317,1738804264732,-155.26,0.000267,31]
[351829318,1738804264741,-155.26,0.000267,31]
[351829319,1738804264751,-155.26,0.000267,31]
[351829320,1738804264761,-155.26,0.000267,31]
[351829321,1738804264770,-155.26,0.000267,31]
[351829322,1738804264781,-1511.91,0.0002673,8]
[351829323,1738804264791,-150.0,0.00026748,2]
[351829324,1738804264801,-1281.44,0.00026778,30]
[351829325,1738804264810,-500.0,0.0002678,10]
[351829326,1738804264820,-454.7684729,0.00026782,2]
[351829327,1738804264830,-616.0756196,0.00026782,2]
[351829328,1738804264841,-281.6957558,0.00026782,2]
[351829329,1738804264851,-216.2869067,0.00026782,2]
[351829330,1738804264862,-181052.92558235,0.000268,7]
[351829331,1738804264871,-500.0,0.000268,9]
[351829332,1738804264881,-500.0,0.000268,12]
[351829333,1738804264891,-919.55317049,0.00026841,120]
[351829334,1738804264901,-800.0,0.00026986,120]
[351829335,1738804264911,-800.0,0.00026986,120]
[351829336,1738804264921,-409.24,0.00026986,120]
[351829337,1738804264931,-250.0,0.00027,2]
[351829338,1738804264941,-988.3135845,0.00027,2]
[351829339,1738804264951,-1000.0,0.00027,20]
[351829340,1738804264962,-5280.67521733,0.00027,7]
[351829341,1738804264975,-1854.24428629,0.00027,14]